bitfinex/quotes_BTCUSD_20241001
["timestamp","ask_amount","ask_price","bid_price","bid_amount"]
[1727764141028,0.71429524,64107.0,64106.0,0.002203]
[1727764141257,0.73875204,64107.0,64106.0,0.00070019]
[1727764141579,0.58057415,64107.0,64106.0,0.01078561]
[1727764141805,0.58057415,64107.0,64106.0,0.00070019]
[1727764142038,0.58057415,64107.0,64106.0,0.01078561]
[1727764142282,0.58057415,64107.0,64106.0,0.00070019]
[1727764142539,0.58057415,64107.0,64106.0,0.01078561]
[1727764142775,0.58057415,64107.0,64106.0,0.00070019]
[1727764143014,0.58057415,64107.0,64106.0,0.01078561]
[1727764143257,0.58057415,64107.0,64106.0,0.00070019]
[1727764143484,0.58057415,64107.0,64106.0,0.01078561]
[1727764143730,0.58057415,64107.0,64106.0,0.00070019]
[1727764143963,0.46252809,64107.0,64106.0,0.01078561]
[1727764144207,0.46252809,64107.0,64106.0,0.15669119]
[1727764144448,0.46252809,64107.0,64106.0,0.16678205]
[1727764144953,0.46252809,64107.0,64106.0,0.01079105]
[1727764145194,0.20637029,64107.0,64106.0,0.16678205]
[1727764146170,0.20137029,64107.0,64106.0,0.16678205]
[1727764146425,0.20637029,64107.0,64106.0,0.16678205]
[1727764147142,0.20737029,64107.0,64106.0,0.17278205]
[1727764147654,0.20437029,64107.0,64106.0,0.17278205]
[1727764148161,0.0282808,64107.0,64106.0,0.17778205]
[1727764148652,0.20504004,64107.0,64106.0,0.17778205]
[1727764148905,0.18058324,64107.0,64106.0,0.17778205]
[1727764152155,0.20503842,64107.0,64106.0,0.17778205]
[1727764152849,0.47954228,64107.0,64106.0,0.02179105]
[1727764153115,0.47947217,64107.0,64106.0,0.02179105]
[1727764153606,0.62004814,64107.0,64106.0,0.02179105]
[1727764155604,0.62004814,64107.0,64106.0,0.17778205]
[1727764156309,0.50200208,64107.0,64106.0,0.17778205]
[1727764157796,0.36142611,64107.0,64106.0,0.17778205]
[1727764157993,0.50200208,64107.0,64106.0,0.17778205]
[1727764158308,0.62004814,64107.0,64106.0,0.02179105]
[1727764158560,0.62004814,64107.0,64106.0,0.17778205]
[1727764159027,0.59559296,64107.0,64106.0,0.17778205]
[1727764159289,0.59559296,64107.0,64106.0,0.02179105]
[1727764159532,0.68669296,64107.0,64106.0,0.17778205]
[1727764159760,0.68669296,64107.0,64106.0,0.02179105]
[1727764160245,0.68669296,64107.0,64106.0,0.17778205]
[1727764162173,0.71114851,64107.0,64106.0,0.02179105]
[1727764162403,0.68669296,64107.0,64106.0,0.02179105]
[1727764163998,0.68669296,64107.0,64106.0,0.01170019]
[1727764164227,0.54611699,64107.0,64106.0,0.01170019]
[1727764164462,0.54611699,64107.0,64106.0,0.02028305]
[1727764165200,0.54611699,64107.0,64106.0,0.02178586]
[1727764165452,0.57057278,64107.0,64106.0,0.02178586]
[1727764166634,0.5704835,64107.0,64106.0,0.02178586]
[1727764168992,0.54602771,64107.0,64106.0,0.02178586]
[1727764172097,0.45243805,64107.0,64106.0,0.01170019]
[1727764172318,0.57048411,64107.0,64106.0,0.01170019]
[1727764172745,0.57031501,64107.0,64106.0,0.01170019]
[1727764176980,0.57031501,64107.0,64106.0,0.02179048]
[1727764177245,0.57031501,64107.0,64106.0,0.01170019]
[1727764178850,0.54585861,64107.0,64106.0,0.02179048]
[1727764180715,0.70184761,64107.0,64106.0,0.02179048]
[1727764180951,0.54585861,64107.0,64106.0,0.02179048]
[1727764182146,0.57031516,64107.0,64106.0,0.02179048]
[1727764182619,0.57049761,64107.0,64106.0,0.02179048]
[1727764183124,0.72648661,64107.0,64106.0,0.02179048]
[1727764186397,0.72648661,64107.0,64106.0,0.01170019]
[1727764187553,0.72678509,64107.0,64106.0,0.01170019]
[1727764189084,0.70232854,64107.0,64106.0,0.01170019]
[1727764189519,0.75232854,64107.0,64106.0,0.01170019]
[1727764191983,0.32183568,64107.0,64106.0,0.01170019]
[1727764192188,0.39580171,64107.0,64106.0,0.16769119]
[1727764192442,0.39580171,64107.0,64106.0,0.17778029]
[1727764192443,0.25534337,64107.0,64106.0,0.17778029]
[1727764193569,0.35334337,64107.0,64106.0,0.17778029]
[1727764193808,0.49395981,64107.0,64106.0,0.17778029]
[1727764194256,0.49395981,64107.0,64106.0,0.16769119]
[1727764194688,0.49395981,64107.0,64106.0,0.17627748]
[1727764198232,0.4695033,64107.0,64106.0,0.17627748]
[1727764201108,0.6259611,64107.0,64106.0,0.17627748]
[1727764201322,0.62599663,64107.0,64106.0,0.02028648]
[1727764201541,0.50982102,64107.0,64106.0,0.02028648]
[1727764202459,0.50982102,64107.0,64106.0,0.17627748]
[1727764204978,0.50982102,64107.0,64106.0,0.02028648]
[1727764205416,0.50982102,64107.0,64106.0,0.17627748]
[1727764205644,0.50954578,64107.0,64106.0,0.17627748]
[1727764206334,0.50954578,64107.0,64106.0,0.02028648]
[1727764210320,0.50954578,64107.0,64106.0,0.17627748]
[1727764210531,0.41152803,64107.0,64106.0,0.17627748]
[1727764210750,0.25507023,64107.0,64106.0,0.17627748]
[1727764214133,0.39570688,64107.0,64106.0,0.47153133]
[1727764214397,0.12413722,64107.0,64106.0,0.47153133]
[1727764214604,0.053824,64107.0,64106.0,0.48988375]
[1727764214824,0.053824,64107.0,64106.0,0.47153133]
[1727764215066,0.053824,64107.0,64106.0,0.34848527]
[1727764215502,0.053824,64107.0,64106.0,0.47253133]
[1727764215936,0.053824,64107.0,64106.0,0.46653133]
[1727764216157,0.050824,64107.0,64106.0,0.46053133]
[1727764216394,0.051824,64107.0,64106.0,0.47453133]
[1727764216617,0.052824,64107.0,64106.0,0.48853133]
[1727764216839,0.052824,64107.0,64106.0,0.47453133]
[1727764217070,0.053824,64107.0,64106.0,0.48853133]
[1727764217295,0.051824,64107.0,64106.0,0.47453133]
[1727764217768,0.051824,64107.0,64106.0,0.49028789]
[1727764218092,0.051824,64107.0,64106.0,0.74674569]
[1727764218308,0.050824,64107.0,64106.0,0.78702569]
[1727764218730,0.050824,64107.0,64106.0,0.80002569]
[1727764219191,0.050824,64107.0,64106.0,0.78702569]
[1727764219638,0.050824,64107.0,64106.0,0.80102569]
[1727764219848,0.050824,64107.0,64106.0,0.78702569]
[1727764220302,0.050824,64107.0,64106.0,0.80802569]
[1727764221645,0.23677793,64120.0,64119.0,0.38141385]
[1727764222100,0.23677793,64127.0,64122.0,0.15735979]
[1727764222343,0.23677793,64127.0,64122.0,0.36122458]
[1727764222553,0.23677793,64127.0,64122.0,0.35810585]
[1727764222773,0.02526974,64123.0,64122.0,0.35810585]
[1727764223432,0.02526974,64123.0,64122.0,0.36710585]
[1727764225413,0.02526974,64123.0,64122.0,0.37510585]
[1727764225683,0.02526974,64123.0,64122.0,0.37678456]
[1727764225899,0.02526974,64123.0,64122.0,0.35978456]
[1727764226115,0.02526974,64123.0,64122.0,0.38378456]
[1727764226560,0.02526974,64123.0,64122.0,0.54024236]
[1727764226789,0.02526974,64123.0,64122.0,0.62924236]
[1727764227023,0.02526974,64123.0,64122.0,0.61624236]
[1727764227268,0.02526974,64123.0,64122.0,0.62724236]
[1727764227521,0.02526974,64123.0,64122.0,0.64024236]
[1727764228410,0.02526974,64123.0,64122.0,0.62924236]
[1727764228829,0.02526974,64123.0,64122.0,0.73324236]
[1727764229059,0.000824,64123.0,64122.0,0.76203324]
[1727764229258,0.000824,64123.0,64122.0,0.72103324]
[1727764229485,0.000824,64123.0,64122.0,0.74403324]
[1727764229702,0.000824,64123.0,64122.0,0.80331324]
[1727764229928,0.000824,64123.0,64122.0,0.78931324]
[1727764230158,0.000824,64123.0,64122.0,0.77531324]
[1727764230396,0.000824,64123.0,64122.0,0.81460488]
[1727764230659,0.000824,64123.0,64122.0,0.80060488]
[1727764230886,0.000824,64123.0,64122.0,0.81460488]
[1727764231603,0.000824,64123.0,64122.0,0.80060488]
[1727764231808,0.000824,64123.0,64122.0,0.80260488]
[1727764232226,0.02526698,64123.0,64122.0,0.80260488]
[1727764232432,0.000824,64123.0,64122.0,0.80260488]
[1727764233314,0.000824,64123.0,64122.0,0.77760488]
[1727764233534,0.000824,64123.0,64122.0,0.70160488]
[1727764233739,0.000824,64123.0,64122.0,0.68760488]
[1727764234170,0.000824,64123.0,64122.0,0.56955882]
[1727764234407,0.000824,64123.0,64122.0,0.70160488]
[1727764234612,0.000824,64123.0,64122.0,0.68760488]
[1727764235030,0.000824,64123.0,64122.0,0.70160488]
[1727764235472,0.000824,64123.0,64122.0,0.67360488]
[1727764235694,0.000824,64123.0,64122.0,0.67560488]
[1727764235695,0.02526744,64123.0,64122.0,0.67560488]
[1727764235902,0.02526744,64123.0,64122.0,0.68960488]
[1727764236110,0.02526744,64123.0,64122.0,0.67560488]
[1727764236318,0.02526744,64123.0,64122.0,0.68960488]
[1727764236524,0.02526744,64123.0,64122.0,0.70160488]
[1727764237218,0.02526744,64123.0,64122.0,0.68760488]
[1727764237657,0.02526744,64123.0,64122.0,0.67360488]
[1727764238090,0.02526744,64123.0,64122.0,0.67560488]
[1727764238530,0.02526744,64123.0,64122.0,0.68760488]
[1727764238949,0.02526744,64123.0,64122.0,0.672814]
[1727764239167,0.000824,64123.0,64122.0,0.686814]
[1727764239807,0.000824,64123.0,64122.0,0.32961014]
[1727764240233,0.097024,64123.0,64122.0,0.32961014]
[1727764240441,0.097024,64123.0,64122.0,0.32525171]
[1727764240662,0.097024,64123.0,64122.0,0.32955341]
[1727764240906,0.097024,64123.0,64122.0,0.29827341]
[1727764242265,0.12146953,64123.0,64122.0,0.29827341]
[1727764242695,0.097024,64123.0,64122.0,0.29827341]
[1727764245479,0.12146985,64123.0,64122.0,0.29827341]
[1727764245704,0.12146985,64123.0,64122.0,0.19827341]
[1727764247284,0.097024,64123.0,64122.0,0.19827341]
[1727764248342,0.174924,64123.0,64122.0,0.19827341]
[1727764249201,0.097024,64123.0,64122.0,0.19827341]
[1727764252161,0.12147155,64123.0,64122.0,0.19827341]
[1727764252608,0.12147155,64123.0,64122.0,0.18427341]
[1727764252817,0.12147155,64123.0,64122.0,0.19427341]
[1727764253026,0.12147155,64123.0,64122.0,0.17027341]
[1727764253460,0.35802935,64123.0,64122.0,0.02932141]
[1727764253917,0.35802935,64123.0,64122.0,0.01891362]
[1727764254340,0.35802935,64123.0,64122.0,0.02532141]
[1727764254565,0.35802935,64123.0,64122.0,0.011]
[1727764254801,0.35802935,64123.0,64122.0,0.02183299]
[1727764254802,0.3335818,64123.0,64122.0,0.02183299]
[1727764255276,0.38020294,64123.0,64122.0,0.02183299]
[1727764255528,0.311921,64119.0,64108.0,0.311971]
[1727764255754,0.1764,64114.0,64113.0,0.23677793]
[1727764255964,0.1764,64114.0,64110.0,0.155981]
[1727764255965,0.0991,64111.0,64110.0,0.155981]
[1727764257306,0.25463523,64111.0,64110.0,0.155981]
[1727764257725,0.25463523,64111.0,64110.0,0.162981]
[1727764258145,0.25463523,64111.0,64110.0,0.16471809]
[1727764258991,0.25563523,64111.0,64110.0,0.17271809]
[1727764260331,0.25563523,64111.0,64110.0,0.18199574]
[1727764260557,0.09917743,64111.0,64110.0,0.18340353]
[1727764260784,0.001,64111.0,64110.0,0.26892304]
[1727764261000,0.001,64111.0,64110.0,0.42426133]
[1727764261661,0.001,64111.0,64110.0,0.45554133]
[1727764261870,0.000824,64123.0,64122.0,0.15735979]
[1727764262309,0.000824,64123.0,64122.0,0.16824937]
[1727764262550,0.02526956,64123.0,64122.0,0.16824937]
[1727764263278,0.000824,64123.0,64122.0,0.16824937]
[1727764263480,0.001824,64123.0,64122.0,0.18036803]
[1727764263691,0.000824,64123.0,64122.0,0.17136803]
[1727764264375,0.000824,64123.0,64122.0,0.33982583]
[1727764264593,0.000824,64123.0,64122.0,0.33870717]
[1727764265248,0.000824,64123.0,64122.0,0.45170717]
[1727764265669,0.000824,64123.0,64122.0,0.48298717]
[1727764266307,0.000824,64123.0,64122.0,0.47098717]
[1727764266514,0.000824,64123.0,64122.0,0.45798717]
[1727764266719,0.000824,64123.0,64122.0,0.47198717]
[1727764266927,0.0252669,64123.0,64122.0,0.48598717]
[1727764267136,0.0252669,64123.0,64122.0,0.47198717]
[1727764267561,0.0252669,64123.0,64122.0,0.48598717]
[1727764267769,0.0252669,64123.0,64122.0,0.50076244]
[1727764268186,0.0252669,64123.0,64122.0,0.48676244]
[1727764268393,0.0252669,64123.0,64122.0,0.50076244]
[1727764268811,0.000824,64123.0,64122.0,0.49876244]
[1727764269023,0.000824,64123.0,64122.0,0.48676244]
[1727764269231,0.000824,64123.0,64122.0,0.50076244]
[1727764269849,0.000824,64123.0,64122.0,0.48676244]
[1727764270098,0.000824,64123.0,64122.0,0.50076244]
[1727764271133,0.000824,64123.0,64122.0,0.48676244]
[1727764271551,0.000824,64123.0,64122.0,0.50076244]
[1727764272803,0.000824,64123.0,64122.0,0.49876244]
[1727764276271,0.000824,64123.0,64122.0,0.50076244]
[1727764276511,0.000824,64123.0,64122.0,0.49876244]
[1727764276988,0.000824,64123.0,64122.0,0.50076244]
[1727764278799,0.02526656,64123.0,64122.0,0.50076244]
[1727764279015,0.000824,64123.0,64122.0,0.50076244]
[1727764280425,0.050824,64123.0,64122.0,0.50076244]
[1727764282822,0.050824,64123.0,64122.0,0.49876244]
[1727764283053,0.050824,64123.0,64122.0,0.50076244]
[1727764283767,0.050824,64123.0,64122.0,0.61864689]
[1727764289283,0.050824,64123.0,64122.0,0.6343649]
[1727764289755,0.050824,64123.0,64122.0,0.63242761]
[1727764289997,0.050824,64123.0,64122.0,0.61765234]
[1727764290673,0.050824,64123.0,64122.0,0.60187162]
[1727764291402,0.050824,64123.0,64122.0,0.44541382]
[1727764291851,0.050824,64123.0,64122.0,0.46122356]
[1727764292300,0.050824,64123.0,64122.0,0.46122333]
[1727764296412,0.050824,64123.0,64122.0,0.45033375]
[1727764297327,0.07526834,64123.0,64122.0,0.45033375]
[1727764299162,0.07526834,64123.0,64122.0,0.31663979]
[1727764300493,0.07526834,64123.0,64122.0,0.28535979]
[1727764300963,0.17296834,64123.0,64122.0,0.18535979]
[1727764301479,0.148524,64123.0,64122.0,0.18535979]
[1727764301904,0.229324,64123.0,64122.0,0.18535979]
[1727764302126,0.34720845,64123.0,64122.0,0.18535979]
[1727764302349,0.34720845,64123.0,64122.0,0.02940779]
[1727764302801,0.34720845,64123.0,64122.0,0.01540779]
[1727764303015,0.34720845,64123.0,64122.0,0.00140779]
[1727764303238,0.34720845,64123.0,64122.0,0.01540779]
[1727764303473,0.34720845,64123.0,64122.0,0.18435979]
[1727764303692,0.34720845,64123.0,64120.0,0.31191]
[1727764303693,0.39388916,64123.0,64120.0,0.31191]
[1727764303949,0.39388916,64123.0,64114.0,0.15597]
[1727764303950,0.096,64117.0,64114.0,0.15597]
[1727764304185,0.04674376,64116.0,64114.0,0.15597]
[1727764304394,0.096,64115.0,64114.0,0.15597]
[1727764304611,0.096,64115.0,64112.0,0.311952]
[1727764304612,0.16611564,64115.0,64112.0,0.311952]
[1727764304875,0.04675281,64113.0,64112.0,0.155975]
[1727764305097,0.33963726,64113.0,64112.0,0.155977]
[1727764305341,0.19688445,64113.0,64110.0,0.157628]
[1727764305569,0.14275697,64112.0,64110.0,0.157628]
[1727764305782,0.14275697,64112.0,64111.0,0.157627]
[1727764306227,0.14275697,64112.0,64111.0,0.001648]
[1727764306710,0.096,64112.0,64111.0,0.157627]
[1727764307377,0.096,64112.0,64111.0,0.159627]
[1727764308100,0.096,64112.0,64111.0,0.162627]
[1727764309266,0.096,64112.0,64111.0,0.006648]
[1727764310190,0.096,64112.0,64111.0,0.162627]
[1727764311571,0.1204526,64112.0,64111.0,0.162627]
[1727764314589,0.096,64112.0,64111.0,0.162627]
[1727764317591,0.12045262,64112.0,64111.0,0.162627]
[1727764318666,0.096,64112.0,64111.0,0.162627]
[1727764322020,0.12045255,64112.0,64111.0,0.162627]
[1727764325242,0.096,64112.0,64111.0,0.162627]
[1727764328244,0.12045254,64112.0,64111.0,0.162627]
[1727764329158,0.096,64112.0,64111.0,0.162627]
[1727764329394,0.000823,64122.0,64121.0,0.155955]
[1727764329651,0.000823,64122.0,64121.0,0.27394204]
[1727764329880,0.000823,64122.0,64121.0,0.155955]
[1727764330556,0.000823,64122.0,64121.0,0.157955]
[1727764330998,0.000823,64122.0,64121.0,0.155955]
[1727764331240,0.001823,64122.0,64121.0,0.161955]
[1727764332178,0.001823,64122.0,64121.0,0.166955]
[1727764332406,0.02627116,64122.0,64121.0,0.166955]
[1727764338093,0.12357116,64122.0,64121.0,0.011]
[1727764338318,0.20377116,64122.0,64121.0,0.011]
[1727764338764,0.20377116,64122.0,64121.0,0.166955]
[1727764338993,0.179323,64122.0,64121.0,0.011]
[1727764339724,0.22595442,64122.0,64121.0,0.011]
[1727764340140,0.22595442,64122.0,64121.0,0.166955]
[1727764341443,0.179323,64122.0,64121.0,0.166955]
[1727764341887,0.20377199,64122.0,64121.0,0.166955]
[1727764342280,0.179323,64122.0,64121.0,0.166955]
[1727764342484,0.24939966,64122.0,64121.0,0.166955]
[1727764343163,0.60614043,64122.0,64121.0,0.011]
[1727764343596,0.51270489,64122.0,64121.0,0.011]
[1727764344619,0.62949932,64122.0,64121.0,0.011]
[1727764344855,0.62949932,64122.0,64121.0,0.166955]
[1727764345276,0.65394871,64122.0,64121.0,0.166955]
[1727764345713,0.53715428,64122.0,64121.0,0.166955]
[1727764345915,0.65408794,64122.0,64121.0,0.166955]
[1727764346169,0.65420157,64122.0,64121.0,0.166955]
[1727764346613,0.53726879,64122.0,64121.0,0.166955]
[1727764348001,0.36023019,64122.0,64121.0,0.166955]
[1727764348218,0.3357808,64122.0,64121.0,0.166955]
[1727764350169,0.3357808,64122.0,64121.0,0.011]
[1727764351578,0.69592663,64122.0,64121.0,0.011]
[1727764352686,0.69592663,64122.0,64121.0,0.006]
[1727764352922,0.4917328,64122.0,64121.0,0.006]
[1727764353155,0.155958,64120.0,64113.0,0.155973]
[1727764353400,0.3124178,64119.0,64113.0,0.155973]
[1727764353589,0.0967,64118.0,64113.0,0.155973]
[1727764353830,0.1564578,64117.0,64113.0,0.155973]
[1727764354069,0.39332758,64117.0,64111.0,0.157626]
[1727764354297,0.23736258,64117.0,64111.0,0.157626]
[1727764354536,0.23736258,64117.0,64113.0,0.001]
[1727764355003,0.1564578,64117.0,64113.0,0.001]
[1727764355226,0.1809097,64117.0,64113.0,0.001]
[1727764355646,0.1809097,64117.0,64112.0,0.155976]
[1727764356086,0.11798963,64116.0,64111.0,0.001648]
[1727764356299,0.1564578,64115.0,64111.0,0.001648]
[1727764357168,0.23249423,64115.0,64111.0,0.001648]
[1727764357397,0.11702735,64112.0,64111.0,0.001648]
[1727764358544,0.1764501,64112.0,64111.0,0.001648]
[1727764358760,0.4888849,64112.0,64111.0,0.001648]
[1727764359014,0.3329079,64112.0,64111.0,0.001648]
[1727764359231,0.3329079,64112.0,64111.0,0.003648]
[1727764359692,0.5794849,64112.0,64111.0,0.003648]
[1727764359926,0.83790735,64112.0,64111.0,0.001648]
[1727764360145,0.5794849,64112.0,64111.0,0.001648]
[1727764360374,0.5794849,64112.0,64111.0,0.003648]
[1727764360375,0.69747453,64112.0,64111.0,0.003648]
[1727764360599,0.77180384,64112.0,64111.0,0.003648]
[1727764360820,0.77102244,64112.0,64111.0,0.001648]
[1727764361064,0.77502244,64112.0,64111.0,0.001648]
[1727764361288,0.78302244,64112.0,64111.0,0.002648]
[1727764361986,0.70869313,64112.0,64111.0,0.002648]
[1727764362214,0.84508297,64112.0,64111.0,0.002648]
[1727764362434,0.85306238,64112.0,64111.0,0.003648]
[1727764362656,0.83706238,64112.0,64111.0,0.001648]
[1727764362899,0.84506238,64112.0,64111.0,0.002648]
[1727764363339,0.83706238,64112.0,64111.0,0.001648]
[1727764363560,0.88559427,64112.0,64111.0,0.002648]
[1727764363782,1.03396352,64112.0,64111.0,0.003648]
[1727764364458,0.89359427,64112.0,64111.0,0.003648]
[1727764366282,0.73714749,64112.0,64111.0,0.003648]
[1727764369610,0.73214749,64112.0,64111.0,0.003648]
[1727764370301,0.70769313,64112.0,64111.0,0.003648]
[1727764373585,0.73214713,64112.0,64111.0,0.003648]
[1727764379213,0.70769313,64112.0,64111.0,0.003648]
[1727764379457,0.55171613,64112.0,64111.0,0.003648]
[1727764380821,0.4337265,64112.0,64111.0,0.003648]
[1727764381059,0.43371634,64112.0,64111.0,0.003648]
[1727764381988,0.34311634,64112.0,64111.0,0.003648]
[1727764382220,0.36757024,64112.0,64111.0,0.003648]
[1727764382959,0.30961419,64112.0,64111.0,0.35921663]
[1727764383206,0.016,64112.0,64111.0,0.241227]
[1727764384174,0.008,64112.0,64111.0,0.240227]
[1727764384393,0.008,64112.0,64111.0,0.35921663]
[1727764384617,0.016,64112.0,64111.0,0.35921663]
[1727764384843,0.008,64112.0,64111.0,0.35821663]
[1727764385038,0.04674855,64117.0,64116.0,0.155967]
[1727764385549,0.07012631,64118.0,64117.0,0.155964]
[1727764386026,0.09457712,64118.0,64117.0,0.155964]
[1727764386252,0.29482974,64118.0,64117.0,0.155964]
[1727764386487,0.20132799,64118.0,64117.0,0.155964]
[1727764386953,0.47577542,64118.0,64111.0,0.395204]
[1727764387211,0.33333498,64117.0,64116.0,0.155965]
[1727764387669,0.33333498,64117.0,64114.0,0.155971]
[1727764387889,0.2937944,64116.0,64115.0,0.155969]
[1727764388601,0.29381245,64116.0,64113.0,0.467919]
[1727764388819,0.17687718,64115.0,64114.0,0.15597]
[1727764389081,0.17687718,64115.0,64114.0,0.001]
[1727764389322,0.29381245,64115.0,64114.0,0.155972]
[1727764389792,0.27043343,64115.0,64114.0,0.155972]
[1727764390020,0.10255483,64116.0,64115.0,0.155969]
[1727764390239,0.18568069,64116.0,64115.0,0.155969]
[1727764390672,0.18068069,64116.0,64115.0,0.155969]
[1727764390946,0.004,64116.0,64115.0,0.155969]
[1727764391170,0.18085274,64116.0,64115.0,0.155969]
[1727764391389,0.29780624,64116.0,64115.0,0.155969]
[1727764391655,0.17685274,64116.0,64115.0,0.155969]
[1727764391873,0.17785274,64116.0,64115.0,0.155969]
[1727764392117,0.17885274,64116.0,64113.0,0.155973]
[1727764392358,0.11997033,64116.0,64113.0,0.155974]
[1727764392591,0.11697033,64114.0,64113.0,0.155974]
[1727764393061,0.29337911,64114.0,64113.0,0.155974]
[1727764393533,0.31783044,64114.0,64113.0,0.155974]
[1727764393752,0.20086011,64114.0,64113.0,0.155974]
[1727764393988,0.20086011,64114.0,64111.0,0.395204]
[1727764394206,0.26999784,64113.0,64112.0,0.155977]
[1727764394447,0.17640878,64113.0,64112.0,0.155977]
[1727764394909,0.11698846,64113.0,64112.0,0.155977]
[1727764395125,0.0935896,64113.0,64111.0,0.397204]
[1727764395316,0.11698846,64114.0,64113.0,0.155974]
[1727764396054,0.11698846,64115.0,64113.0,0.311948]
[1727764396279,0.2934491,64114.0,64113.0,0.467921]
[1727764396518,0.11698766,64114.0,64112.0,0.157975]
[1727764396743,0.17646144,64113.0,64112.0,0.157976]
[1727764397412,0.17646144,64113.0,64112.0,0.002]
[1727764397694,0.17646144,64113.0,64111.0,0.001648]
[1727764397695,0.20091313,64113.0,64111.0,0.160627]
[1727764397932,0.17646144,64112.0,64111.0,0.157627]
[1727764398865,0.17646144,64112.0,64111.0,0.160627]
[1727764399119,0.48889624,64112.0,64111.0,0.001648]
[1727764399569,0.48889624,64112.0,64111.0,0.008648]
[1727764400011,0.78698587,64112.0,64111.0,0.008648]
[1727764400727,0.78698587,64112.0,64111.0,0.005648]
[1727764401226,0.78898587,64112.0,64111.0,0.005648]
[1727764401437,0.78898587,64112.0,64111.0,0.001648]
[1727764401876,0.78698587,64112.0,64111.0,0.001648]
[1727764402077,0.80698587,64112.0,64111.0,0.003648]
[1727764402554,0.79880987,64112.0,64111.0,0.002648]
[1727764402778,0.79880987,64112.0,64111.0,0.003648]
[1727764402779,0.81080987,64112.0,64111.0,0.003648]
[1727764403009,0.83526448,64112.0,64111.0,0.003648]
[1727764404559,0.83413678,64112.0,64111.0,0.003648]
[1727764406101,0.63524715,64112.0,64111.0,0.003648]
[1727764406575,0.38007015,64112.0,64111.0,0.003648]
[1727764407265,0.35561554,64112.0,64111.0,0.003648]
[1727764408433,0.49601181,64112.0,64111.0,0.003648]
[1727764408646,0.35561554,64112.0,64111.0,0.003648]
[1727764410222,0.38006902,64112.0,64111.0,0.003648]
[1727764411428,0.35561554,64112.0,64111.0,0.003648]
[1727764413460,0.35561554,64112.0,64111.0,0.01444648]
[1727764413676,0.35561554,64112.0,64111.0,0.003648]
[1727764414351,0.35612303,64112.0,64111.0,0.003648]
[1727764414819,0.38057643,64112.0,64111.0,0.003648]
[1727764415953,0.35612303,64112.0,64111.0,0.003648]
[1727764416174,0.4965225,64112.0,64111.0,0.003648]
[1727764417334,0.35612303,64112.0,64111.0,0.003648]
[1727764417556,0.4965225,64112.0,64111.0,0.003648]
[1727764417811,0.52097616,64112.0,64111.0,0.003648]
[1727764421256,0.4965225,64112.0,64111.0,0.003648]
[1727764423816,0.6524995,64112.0,64111.0,0.003648]
[1727764424042,0.60870003,64112.0,64111.0,0.003648]
[1727764424523,0.63315444,64112.0,64111.0,0.003648]
[1727764427062,0.63815444,64112.0,64111.0,0.003648]
[1727764427744,0.75620153,64112.0,64111.0,0.003648]
[1727764428447,0.75620153,64112.0,64107.0,0.001648]
[1727764428448,0.334386,64108.0,64107.0,0.001648]
[1727764428674,0.94270595,64108.0,64107.0,0.001648]
[1727764428895,1.03090985,64108.0,64107.0,0.001648]
[1727764429833,1.50586985,64108.0,64107.0,0.002648]
[1727764430075,1.50586985,64108.0,64107.0,0.003648]
[1727764430076,1.67131663,64108.0,64107.0,0.003648]
[1727764430319,1.65531663,64108.0,64107.0,0.001648]
[1727764430824,1.65531663,64108.0,64107.0,0.003648]
[1727764430825,1.65886985,64108.0,64107.0,0.003648]
[1727764431064,0.285998,64103.0,64102.0,0.00192]
[1727764431327,1.37940412,64103.0,64102.0,0.00192]
[1727764431546,1.74605917,64103.0,64102.0,0.00192]
[1727764432258,1.72159859,64103.0,64102.0,0.00192]
[1727764432987,1.73559859,64103.0,64102.0,0.00192]
[1727764433693,1.52953476,64103.0,64102.0,0.00192]
[1727764433940,1.70452462,64103.0,64102.0,0.00192]
[1727764434169,1.69952462,64103.0,64102.0,0.00192]
[1727764434399,1.70452462,64103.0,64102.0,0.00192]
[1727764435349,1.72898419,64103.0,64102.0,0.00192]
[1727764435595,1.70098419,64103.0,64102.0,0.00192]
[1727764436067,1.85743097,64103.0,64102.0,0.00192]
[1727764436512,1.86943097,64103.0,64102.0,0.00192]
[1727764436732,1.85543097,64103.0,64102.0,0.00192]
[1727764436988,1.86643097,64103.0,64102.0,0.00192]
[1727764437459,1.84343097,64103.0,64102.0,0.00192]
[1727764437685,1.85543097,64103.0,64102.0,0.00192]
[1727764438648,1.69408373,64103.0,64102.0,0.00192]
[1727764439122,1.66962416,64103.0,64102.0,0.00192]
[1727764439333,1.68360291,64103.0,64102.0,0.00192]
[1727764439561,1.68360291,64103.0,64102.0,0.003568]
[1727764440027,0.156006,64100.0,64099.0,0.001646]
[1727764440285,1.09442781,64100.0,64099.0,0.001646]
[1727764440753,1.30239055,64100.0,64099.0,0.001646]
[1727764440978,1.48179055,64100.0,64099.0,0.001646]
[1727764441241,1.50479055,64100.0,64099.0,0.001646]
[1727764441491,1.66252949,64100.0,64099.0,0.001646]
[1727764441720,1.66253441,64100.0,64099.0,0.001646]
[1727764441938,1.81898119,64100.0,64099.0,0.001646]
[1727764442201,1.85544356,64100.0,64099.0,0.001646]
[1727764442428,1.84144356,64100.0,64099.0,0.001646]
[1727764442677,1.86744356,64100.0,64099.0,0.001646]
[1727764442902,1.53925292,64100.0,64099.0,0.001646]
[1727764443119,1.52725292,64100.0,64099.0,0.001646]
[1727764443345,1.54125292,64100.0,64099.0,0.001646]
[1727764443561,1.55525292,64100.0,64099.0,0.001646]
[1727764444009,1.54125292,64100.0,64099.0,0.001646]
[1727764444474,1.7116997,64100.0,64099.0,0.001646]
[1727764444728,1.72612938,64100.0,64099.0,0.001646]
[1727764444980,1.72812938,64100.0,64099.0,0.001646]
[1727764445224,0.61980986,64094.0,64093.0,0.001646]
[1727764445450,1.41601818,64094.0,64093.0,0.001646]
[1727764445674,1.96640474,64094.0,64093.0,0.001646]
[1727764446112,1.96840474,64094.0,64093.0,0.001646]
[1727764446362,1.81072464,64094.0,64093.0,0.001646]
[1727764446580,1.96840474,64094.0,64093.0,0.001646]
[1727764447040,1.99640474,64094.0,64093.0,0.001646]
[1727764447303,1.83872464,64094.0,64093.0,0.001646]
[1727764448449,1.9962926,64094.0,64093.0,0.001646]
[1727764449386,1.9962926,64094.0,64089.0,0.00186]
[1727764449387,0.44983,64090.0,64089.0,0.00186]
[1727764449616,0.44983,64090.0,64078.0,0.28617363]
[1727764449617,0.51784686,64079.0,64078.0,0.28617363]
[1727764449846,1.31605518,64079.0,64078.0,0.28617363]